bitfinex-derivatives/quotes_ETHF0:USTF0_20240817
["timestamp","ask_amount","ask_price","bid_price","bid_amount"]
[1723859112076,0.00447045,2606.4,2606.2,1.00300602]
[1723859112275,1.92222045,2606.4,2606.2,1.00300602]
[1723859112479,1.92222045,2606.4,2606.2,0.00362842]
[1723859113585,1.91782,2606.3,2606.2,0.00362842]
[1723859113979,6.48372,2606.3,2606.2,0.00362842]
[1723859118676,2.64692,2606.3,2606.2,0.00362842]
[1723859118884,6.48372,2606.3,2606.2,0.00362842]
[1723859119086,2.64692,2606.3,2606.2,0.00362842]
[1723859120179,6.48372,2606.3,2606.2,0.00362842]
[1723859120682,0.00447045,2606.4,2606.2,0.00362842]
[1723859120983,5.75903045,2606.4,2606.2,0.00362842]
[1723859121381,0.00447045,2606.4,2606.2,0.00362842]
[1723859121684,0.00447045,2606.4,2606.2,1.92151842]
[1723859122276,1.92222045,2606.4,2606.2,0.00362842]
[1723859123181,1.92222045,2606.4,2606.2,1.92151842]
[1723859123382,1.92222045,2606.4,2606.2,0.00362842]
[1723859125784,1.91782,2606.3,2606.2,0.00362842]
[1723859126178,5.75462,2606.3,2606.2,0.00362842]
[1723859130077,7.67244,2606.3,2606.2,0.00362842]
[1723859131985,8.77744,2606.3,2606.2,0.00362842]
[1723859133485,13.77744,2606.3,2606.2,0.00362842]
[1723859135575,10.75462,2606.3,2606.2,0.00362842]
[1723859135783,5.75462,2606.3,2606.2,0.00362842]
[1723859135993,6.85962,2606.3,2606.2,0.00362842]
[1723859137986,5.75462,2606.3,2606.2,0.00362842]
[1723859138178,7.67244,2606.3,2606.2,0.00362842]
[1723859138382,12.67244,2606.3,2606.2,0.00362842]
[1723859138779,26.24844,2606.3,2606.2,0.00362842]
[1723859139092,28.16626,2606.3,2606.2,8.42e-06]
[1723859139392,26.43712901,2606.3,2606.2,8.42e-06]
[1723859139785,28.35494901,2606.3,2606.2,8.42e-06]
[1723859140694,5.75391,2606.1,2606.0,0.00576136]
[1723859140892,8.96171,2606.1,2606.0,0.00576136]
[1723859141193,17.79931,2606.1,2606.0,0.00576136]
[1723859141388,18.51561,2606.1,2606.0,0.00576136]
[1723859141589,18.51561,2606.1,2606.0,0.01069446]
[1723859142893,29.43961,2606.1,2606.0,0.01069446]
[1723859143193,29.43961,2606.1,2606.0,4.46e-06]
[1723859144285,24.43961,2606.1,2606.0,4.46e-06]
[1723859144996,22.52164,2606.1,2606.0,4.46e-06]
[1723859145195,27.52164,2606.1,2606.0,4.46e-06]
[1723859148399,29.43961,2606.1,2606.0,4.46e-06]
[1723859150999,1.91863,2605.2,2605.1,0.3764]
[1723859151895,1.91863,2605.2,2605.1,0.38105251]
[1723859159412,6.76839,2605.7,2605.1,0.38105251]
[1723859159413,7.3208,2605.7,2605.1,0.38105251]
[1723859159614,10.924,2605.8,2605.7,1.91827]
[1723859159807,3.2078,2606.0,2605.8,1.91817]
[1723859160014,3.2078,2606.0,2605.9,0.7196]
[1723859160512,3.2078,2606.0,2605.9,2.63772]
[1723859160712,3.2078,2606.0,2605.9,0.7196]
[1723859161107,3.2078,2606.0,2605.9,1.089]
[1723859161807,3.00266029,2606.2,2606.0,1.91801]
[1723859162008,3.00266029,2606.2,2606.0,1.918]
[1723859162211,3.00266029,2606.2,2606.1,1.91797]
[1723859162413,0.00447045,2606.4,2606.3,1.91782]
[1723859163010,0.00447045,2606.4,2606.3,5.75462]
[1723859163517,3.99799928,2606.5,2606.4,1.91775]
[1723859163715,3.99799928,2606.5,2606.4,5.75455]
[1723859164519,4.0012023,2606.5,2606.4,5.75455]
[1723859166022,4.0012023,2606.5,2606.4,14.88405892]
[1723859166628,4.0012023,2606.5,2606.2,3.2078]
[1723859166921,4.0012023,2606.5,2606.4,1.91775]
[1723859167329,4.0012023,2606.5,2606.4,15.06350589]
[1723859171131,4.0012023,2606.5,2606.2,3.2078]
[1723859171318,4.0012023,2606.5,2606.4,1.91775]
[1723859171523,4.0012023,2606.5,2606.3,1.91778]
[1723859171926,4.0012023,2606.5,2606.3,5.75458]
[1723859172325,4.0012023,2606.5,2606.4,1.91775]
[1723859172526,4.0012023,2606.5,2606.4,5.75455]
[1723859174131,4.0012023,2606.5,2606.4,16.83359026]
[1723859175627,4.0012023,2606.5,2606.4,14.91584026]
[1723859177323,4.0012023,2606.5,2606.4,9.91584026]
[1723859177519,4.0012023,2606.5,2606.4,14.91584026]
[1723859181137,0.00320302,2606.5,2606.4,14.91584026]
[1723859183835,0.00320302,2606.5,2606.4,9.91584026]
[1723859184026,0.00320302,2606.5,2606.4,14.91584026]
[1723859184436,0.00320302,2606.5,2606.4,9.91584026]
[1723859184733,0.00320302,2606.5,2606.4,14.91584026]
[1723859184925,0.00320302,2606.5,2606.4,9.91584026]
[1723859185132,0.00320302,2606.5,2606.4,14.91584026]
[1723859185326,0.00320302,2606.5,2606.4,9.91584026]
[1723859186138,0.00320302,2606.5,2606.4,14.91584026]
[1723859186529,0.00320302,2606.5,2606.4,9.91584026]
[1723859186729,0.00320302,2606.5,2606.4,14.91584026]
[1723859187428,0.00320302,2606.5,2606.0,2.95833112]
[1723859187429,1.92088302,2606.5,2606.0,2.95833112]
[1723859187639,1.92088302,2606.5,2606.2,1.91785]
[1723859187940,1.91786,2606.3,2606.1,1.91792]
[1723859188134,0.3673,2606.2,2606.1,1.91792]
[1723859190043,0.3673,2606.2,2606.1,5.75472]
[1723859191039,0.3673,2606.2,2606.1,1.91792]
[1723859191431,0.3673,2606.2,2606.1,3.8368]
[1723859191627,2.28522,2606.2,2606.0,1.91804]
[1723859191837,0.7053,2606.1,2606.0,1.91804]
[1723859193839,0.7053,2606.1,2605.2,1.48687069]
[1723859193840,1.91817,2605.9,2605.2,1.48687069]
[1723859194048,1.91839,2605.6,2605.2,3.40546069]
[1723859194239,0.3616,2605.5,2605.2,3.40546069]
[1723859194440,0.3616,2605.5,2605.3,2.90934118]
[1723859194745,2.28001,2605.5,2605.3,0.99079118]
[1723859195046,0.3616,2605.5,2605.3,0.99079118]
[1723859195243,2.28006,2605.5,2605.3,0.99079118]
[1723859195445,2.28004,2605.5,2605.3,0.99079118]
[1723859195746,1.91849,2605.4,2605.3,0.99079118]
[1723859196037,5.75689,2605.4,2605.3,0.99079118]
[1723859196834,1.91856,2605.3,2605.2,1.48687069]
[1723859197041,5.75696,2605.3,2605.2,1.48687069]
[1723859198145,1.91863,2605.2,2605.1,0.00465251]
[1723859198642,5.75703,2605.2,2605.1,0.00465251]
[1723859200135,6.49153,2605.2,2605.1,0.00465251]
[1723859200842,6.49153,2605.2,2604.9,0.00576136]
[1723859200843,1.91878,2605.0,2604.9,0.00576136]
[1723859201639,1.91878,2605.0,2604.9,0.00986901]
[1723859203543,5.75798,2605.0,2604.9,0.00986901]
[1723859203746,8.96578,2605.0,2604.9,0.00986901]
[1723859204150,13.96578,2605.0,2604.9,0.00986901]
[1723859204344,13.96578,2605.0,2604.3,5.37]
[1723859204540,0.351,2604.9,2604.3,5.37]
[1723859204740,0.351,2604.9,2604.3,7.28929]
[1723859205046,1.91907,2604.7,2604.3,7.28929]
[1723859205246,0.3668,2604.6,2604.4,1.91921]
[1723859205436,0.37102882,2604.6,2604.4,2.28420401]
[1723859206343,0.37102882,2604.6,2604.4,0.36499401]
[1723859206545,0.37102882,2604.6,2604.4,2.28418401]
[1723859207345,0.37102882,2604.6,2604.4,2.28421401]
[1723859207545,0.00422882,2604.6,2604.4,2.28421401]
[1723859207746,0.00422882,2604.6,2604.5,1.91915]
[1723859212455,0.00422882,2604.6,2604.4,2.28417401]
[1723859213754,0.00422882,2604.6,2604.5,1.91915]
[1723859217743,0.00422882,2604.6,2604.4,2.28418401]
[1723859218449,1.92329882,2604.6,2604.4,2.28418401]
[1723859218650,1.92336882,2604.6,2604.4,0.36499401]
[1723859218856,2.26595,2604.5,2604.4,0.36499401]
[1723859220352,0.3468,2604.5,2604.4,0.36499401]
[1723859220551,2.26595,2604.5,2604.4,0.36499401]
[1723859223853,2.26595,2604.5,2604.4,0.00439401]
[1723859224656,9.31295,2604.5,2604.4,0.00439401]
[1723859225162,11.2321,2604.5,2604.4,0.00439401]
[1723859225365,1.9193,2604.3,2604.2,0.00576136]
[1723859225758,6.1144,2604.3,2604.2,0.00576136]
[1723859225962,3.3804,2604.3,2604.2,0.00576136]
[1723859226265,7.2204,2604.3,2604.2,0.01058841]
[1723859226865,3.3804,2604.3,2604.2,0.01058841]
[1723859227361,7.2204,2604.3,2604.2,0.01058841]
[1723859227565,3.3804,2604.3,2604.2,0.01058841]
[1723859227766,1.106,2604.3,2604.2,0.01058841]
[1723859227958,1.91922,2604.4,2604.2,0.01058841]
[1723859228155,0.3468,2604.5,2604.4,1.91922]
[1723859228360,0.00422882,2604.6,2604.5,1.91915]
[1723859232967,0.00422882,2604.6,2604.4,1.91918]
[1723859233177,1.92333882,2604.6,2604.3,2.65135]
[1723859233376,1.91923,2604.4,2604.2,0.01058841]
[1723859233674,1.91923,2604.4,2604.2,1.92993841]
[1723859234874,1.91923,2604.4,2604.2,0.01058841]
[1723859235074,0.3421,2604.3,2604.2,0.01058841]
[1723859235274,0.3421,2604.3,2604.2,1.92995841]
[1723859235971,2.2614,2604.3,2604.2,0.01058841]
[1723859238074,0.3421,2604.3,2604.2,0.01058841]
[1723859238472,2.2614,2604.3,2604.2,0.01058841]
[1723859239073,0.3421,2604.3,2604.2,0.01058841]
[1723859239268,0.3421,2604.3,2604.2,1.92995841]
[1723859239964,1.91919,2604.5,2604.3,1.91927]
[1723859240167,1.91919,2604.5,2604.3,2.27877]
[1723859240367,1.91919,2604.5,2604.3,0.3595]
[1723859240665,1.91922,2604.4,2604.3,0.3595]
[1723859241075,1.91922,2604.4,2604.3,4.1995]
[1723859241279,1.91922,2604.4,2604.2,1.92990841]
[1723859241471,1.9193,2604.3,2604.2,0.01058841]
[1723859241771,2.2973,2604.3,2604.2,0.01058841]
[1723859242871,1.91921,2604.5,2604.2,1.92995841]
[1723859243073,1.91921,2604.5,2604.3,1.91929]
[1723859243279,0.38292882,2604.6,2604.3,0.3633]
[1723859243580,1.91922,2604.4,2604.3,0.3633]
[1723859245383,1.91921,2604.5,2604.3,0.3633]
[1723859245677,1.91922,2604.4,2604.3,0.3633]
[1723859246683,1.91922,2604.4,2604.2,1.92993841]
[1723859248486,0.38292882,2604.6,2604.2,1.92993841]
[1723859248776,1.91923,2604.4,2604.2,1.92993841]
[1723859249375,1.91919,2604.5,2604.2,1.92993841]
[1723859250083,0.38292882,2604.6,2604.5,1.91915]
[1723859251877,0.00422882,2604.6,2604.5,5.75835]
[1723859252081,0.374,2605.0,2604.9,1.91885]
[1723859252482,0.00576136,2605.2,2605.0,1.91871]
[1723859252886,1.92440136,2605.2,2605.0,1.91871]
[1723859253079,1.92440136,2605.2,2604.6,3.9554]
[1723859253080,1.92794776,2605.2,2604.9,1.9188]
[1723859253578,1.92794776,2605.2,2604.8,1.9189]
[1723859253579,0.00930776,2605.2,2604.8,1.9189]
[1723859253782,1.91876,2605.1,2604.8,1.9189]
[1723859254177,1.92797776,2605.2,2604.9,1.91885]
[1723859254378,1.91871,2605.1,2604.9,1.91885]
[1723859254572,0.00930776,2605.2,2604.9,1.91885]
[1723859254775,1.91871,2605.1,2604.8,1.91889]
[1723859256183,0.00930776,2605.2,2604.6,3.9554]
[1723859256486,0.00930776,2605.2,2605.1,1.91871]
[1723859260886,0.00930776,2605.2,2604.9,4.7034774]
[1723859262581,1.91874,2605.1,2604.9,6.6223274]
[1723859263081,0.342,2605.0,2604.9,6.6223274]
[1723859264084,2.26078,2605.0,2604.9,1.4956774]
[1723859264273,6.09998,2605.0,2604.9,1.4956774]
[1723859265489,6.09998,2605.0,2604.6,2.29385]
[1723859265490,1.9189,2604.9,2604.6,2.29385]
[1723859265688,1.91918,2604.5,2604.3,4.7034774]
[1723859265981,3.2078,2604.8,2604.3,1.4956774]
[1723859265982,2.27012,2604.4,2604.3,1.4956774]
[1723859266283,1.9193,2604.3,2604.2,0.01058841]
[1723859266680,2.27016,2604.4,2604.2,0.01058841]
[1723859266880,0.3509,2604.4,2604.2,0.01058841]
[1723859267287,1.9193,2604.3,2604.2,0.01058841]
[1723859267790,0.3509,2604.4,2604.2,1.92994841]
[1723859269291,0.3509,2604.4,2604.3,1.9193]
[1723859271087,0.3509,2604.4,2604.2,1.92994841]
[1723859271293,0.3509,2604.4,2604.2,0.01058841]
[1723859271494,2.2945,2604.3,2604.2,0.01058841]
[1723859271794,2.6431,2604.3,2604.2,0.01058841]
[1723859272092,6.4831,2604.3,2604.2,0.01058841]
[1723859274981,2.27017,2604.4,2604.2,0.01058841]
[1723859276487,1.9193,2604.3,2604.2,0.01058841]
[1723859277695,0.3509,2604.4,2604.2,0.01058841]
[1723859277993,0.3509,2604.4,2604.3,1.9193]
[1723859278295,0.3509,2604.4,2604.3,2.267]
[1723859278485,0.3509,2604.4,2604.3,2.6414]
[1723859281688,0.7358,2604.7,2604.4,1.91919]
[1723859282087,0.7358,2604.7,2604.5,1.91913]
[1723859282287,0.364,2604.7,2604.5,1.91911]
[1723859282489,1.9189,2604.9,2604.3,0.7221]
[1723859282691,1.9189,2604.9,2604.7,1.919]
[1723859282891,1.9189,2604.9,2604.6,1.91903]
[1723859283596,1.91895,2604.8,2604.5,1.91911]
[1723859283791,3.3534,2605.0,2604.4,3.2078]
[1723859283792,1.91889,2604.9,2604.6,1.91906]
[1723859284403,1.91889,2604.9,2604.6,1.91901]
[1723859284788,0.00930776,2605.2,2604.5,1.91909]
[1723859284986,0.00930776,2605.2,2605.1,5.12651]
[1723859285391,0.00930776,2605.2,2605.1,3.8384]
[1723859285595,0.00930776,2605.2,2605.1,5.75711]
[1723859285793,0.00930776,2605.2,2605.1,3.8384]
[1723859285990,0.00930776,2605.2,2605.1,5.75711]
[1723859286797,0.00930776,2605.2,2605.1,1.91871]
[1723859287099,0.00930776,2605.2,2605.1,5.75711]
[1723859287695,0.00930776,2605.2,2605.1,1.91871]
[1723859287890,0.00930776,2605.2,2605.1,5.75711]
[1723859288192,0.00930776,2605.2,2605.1,1.91871]
[1723859290587,0.00930776,2605.2,2605.0,2.27732]
[1723859290791,1.91871,2605.1,2604.8,10.50069]
[1723859291196,0.3574,2605.0,2604.9,1.91885]
[1723859291402,0.3574,2605.0,2604.9,2.26145]
[1723859291705,0.3574,2605.0,2604.9,0.3426]
[1723859294499,2.27618,2605.0,2604.9,0.3426]
[1723859294699,0.3574,2605.0,2604.9,2.26145]
[1723859297415,4.1966,2605.0,2604.5,1.91908]
[1723859297708,1.91904,2604.7,2604.4,5.12697]
[1723859298011,2.61041,2604.6,2604.3,2.28433]
[1723859298210,0.6913,2604.6,2604.4,1.91922]
[1723859298505,2.6104,2604.6,2604.3,1.91924]
[1723859298706,1.91918,2604.5,2604.2,1.92990841]
[1723859298907,0.3446,2604.4,2604.3,1.91929]
[1723859300810,2.61041,2604.6,2604.4,1.91922]
[1723859301409,2.61041,2604.6,2604.2,0.01058841]
[1723859301410,2.61041,2604.6,2604.3,1.91925]
[1723859302911,0.6913,2604.6,2604.4,1.91919]
[1723859303107,0.6913,2604.6,2604.3,1.91925]
[1723859303108,2.61041,2604.6,2604.3,1.91925]
[1723859303605,1.91915,2604.5,2604.3,1.91925]
[1723859304112,1.91915,2604.5,2604.2,1.92990841]
[1723859304503,1.91915,2604.5,2604.3,1.91929]
[1723859304709,0.6913,2604.6,2604.2,0.01058841]
[1723859305020,1.9193,2604.3,2604.2,0.01058841]
[1723859305510,5.7593,2604.3,2604.2,0.01058841]
[1723859305708,7.6786,2604.3,2604.2,0.01058841]
[1723859305906,8.0435,2604.3,2604.2,0.01058841]
[1723859309115,11.2513,2604.3,2604.2,0.01058841]
[1723859309716,9.332,2604.3,2604.2,0.01058841]
[1723859310109,6.1242,2604.3,2604.2,0.01058841]
[1723859311917,1.9193,2604.3,2604.2,0.01058841]
[1723859314414,5.7593,2604.3,2604.2,0.01058841]
[1723859315020,8.9671,2604.3,2604.2,0.01058841]
[1723859316123,10.8864,2604.3,2604.2,0.01058841]
[1723859316614,15.8864,2604.3,2604.2,0.01058841]
[1723859317924,10.8864,2604.3,2604.2,0.01058841]
[1723859319425,7.0464,2604.3,2604.2,0.01058841]
[1723859319626,5.1271,2604.3,2604.2,0.01058841]
[1723859322119,8.9671,2604.3,2604.2,0.01058841]
[1723859329424,10.8864,2604.3,2604.2,0.01058841]
[1723859330524,1.91945,2604.1,2603.6,0.3703]
[1723859330727,1.91974,2603.7,2603.6,0.3703]
[1723859331322,1.91981,2603.6,2603.4,3.2078]
[1723859331525,2.29851,2603.6,2603.4,3.21180079]
[1723859331725,2.29851,2603.6,2603.4,1.92395079]
[1723859332030,0.00576136,2603.8,2603.5,3.8408]
[1723859332222,0.00576136,2603.8,2603.7,1.91974]
[1723859334732,0.00576136,2603.8,2603.6,1.91975]
[1723859335033,0.00576136,2603.8,2603.7,2.28804]
[1723859341833,0.00576136,2603.8,2603.5,1.91985]
[1723859342039,0.00576136,2603.8,2603.4,0.35850079]
[1723859342235,1.91984,2603.6,2603.4,0.35850079]
[1723859343636,1.91989,2603.5,2603.4,0.00400079]
[1723859344140,5.76069,2603.5,2603.4,0.00400079]
[1723859344339,1.91989,2603.5,2603.4,0.00400079]
[1723859344536,5.76069,2603.5,2603.4,0.00400079]
[1723859348531,1.91989,2603.5,2603.4,0.00400079]
[1723859348727,5.76069,2603.5,2603.4,0.00400079]
[1723859349334,1.91989,2603.5,2603.4,0.00400079]
[1723859349734,5.76069,2603.5,2603.4,0.00400079]
[1723859350439,1.91989,2603.5,2603.4,0.00400079]
[1723859354136,0.3562,2603.7,2603.4,0.00400079]
[1723859354444,1.91981,2603.6,2603.4,0.00400079]
[1723859354740,1.0905,2603.7,2603.4,0.00400079]
[1723859356235,1.91985,2603.6,2603.4,0.00400079]
[1723859356436,0.3562,2603.7,2603.5,1.91984]
[1723859356640,0.3562,2603.7,2603.4,2.29302079]
[1723859356641,2.27595,2603.7,2603.4,2.29302079]
[1723859357336,2.27595,2603.7,2603.5,1.91987]
[1723859357638,2.27599,2603.7,2603.5,1.91988]
[1723859357830,1.106,2603.6,2603.5,1.91988]
[1723859358641,1.106,2603.6,2603.4,2.29301079]
[1723859359030,3.02582,2603.6,2603.4,0.00400079]
[1723859359243,3.39782,2603.6,2603.4,0.00400079]
[1723859359743,3.39782,2603.6,2603.4,1.92395079]
[1723859360536,3.39782,2603.6,2603.4,0.00400079]
[1723859361341,3.39782,2603.6,2603.4,1.92395079]
[1723859362945,3.39782,2603.6,2603.4,0.00400079]
[1723859364145,1.91988,2603.5,2603.4,0.00400079]
[1723859364839,2.27178,2603.5,2603.4,0.00400079]
[1723859368344,1.91988,2603.5,2603.4,0.00400079]
[1723859368552,2.27598,2603.7,2603.4,3.84480079]
[1723859368847,3.38194,2603.7,2603.5,1.91982]
[1723859369251,3.38194,2603.7,2603.6,0.3666]
[1723859369552,1.4622,2603.7,2603.6,2.28641]
[1723859370251,0.00576136,2603.8,2603.6,4.2074]
[1723859370449,0.00576136,2603.8,2603.7,6.10644]
[1723859370843,0.00576136,2603.8,2603.7,4.1867]
[1723859372148,0.00576136,2603.8,2603.7,6.10644]
[1723859372345,0.00576136,2603.8,2603.7,4.1867]
[1723859373740,1.92542136,2603.8,2603.7,0.3459]
[1723859373948,0.38446136,2603.8,2603.4,0.00400079]
[1723859374147,0.3568,2603.7,2603.5,2.28736]
[1723859375152,0.00576136,2603.8,2603.6,1.91981]
[1723859375350,0.36256136,2603.8,2603.7,0.3758]
[1723859376945,3.01408871,2604.4,2604.2,1.91932]
[1723859377153,1.106,2604.3,2604.2,1.91937]
[1723859377657,3.01408871,2604.4,2604.3,1.9193]
[1723859377947,3.01408871,2604.4,2604.3,5.7593]
[1723859378757,4.12008871,2604.4,2604.3,5.7593]
[1723859379851,3.01408871,2604.4,2604.3,5.7593]
[1723859382050,3.01408871,2604.4,2603.8,3.2078]
[1723859382255,3.3558,2604.3,2603.8,3.5525]
[1723859382553,1.91945,2604.1,2603.8,5.47213]
[1723859384658,1.91941,2604.2,2603.9,1.91958]
[1723859384854,1.91945,2604.1,2603.8,5.47212]
[1723859385451,1.91941,2604.2,2603.9,1.91956]
[1723859385650,0.00576136,2604.6,2603.8,3.5525]
[1723859385962,0.3464,2604.5,2604.0,1.91946]
[1723859386147,1.91926,2604.4,2604.0,1.91946]
[1723859386557,2.2876,2604.3,2604.0,1.91946]
[1723859386759,0.3683,2604.3,2604.0,1.91946]
[1723859387056,0.3683,2604.3,2604.0,1.91947]
[1723859388457,2.28761,2604.3,2604.0,1.91952]
[1723859388646,0.3683,2604.3,2604.0,1.91952]
[1723859388850,2.2876,2604.3,2604.0,1.91952]
[1723859389251,1.91939,2604.2,2603.8,3.5525]
[1723859389452,0.3683,2604.3,2603.9,1.91958]
[1723859389661,2.28763,2604.3,2603.9,1.91953]
[1723859390756,0.3683,2604.3,2604.1,1.9194]
[1723859391249,0.3683,2604.3,2604.2,0.3631]
[1723859393748,0.3683,2604.3,2604.0,1.91947]
[1723859394563,2.2876,2604.3,2604.0,1.91947]
[1723859395257,0.3792,2604.2,2604.0,1.91947]
[1723859395947,0.3683,2604.3,2604.1,5.75944]
[1723859397061,0.3683,2604.3,2604.1,3.84]
[1723859397562,0.3683,2604.3,2604.1,5.75944]
[1723859398866,0.3683,2604.3,2604.1,3.84]
[1723859399366,0.3683,2604.3,2604.1,5.75944]
[1723859399755,0.3683,2604.3,2604.1,3.84]
[1723859399960,0.3683,2604.3,2604.1,5.75943]
[1723859400164,0.3683,2604.3,2603.8,4.90817924]
[1723859400461,0.3683,2604.3,2604.1,1.91939]
[1723859400961,0.00576136,2604.6,2604.5,1.91915]
[1723859401170,0.00576136,2604.6,2604.5,5.75835]
[1723859401463,0.00576136,2604.6,2604.5,14.96745885]
[1723859401668,0.00576136,2604.6,2604.5,13.96615]
[1723859401868,0.00576136,2604.6,2604.3,1.70680885]
[1723859402168,0.00576136,2604.6,2604.5,1.91915]
[1723859402666,0.00576136,2604.6,2604.5,5.75835]
[1723859404266,0.00576136,2604.6,2604.5,3.8392]
[1723859404460,0.00576136,2604.6,2604.4,1.9192]
[1723859405158,1.92485136,2604.6,2604.3,2.28116]
[1723859405360,0.00576136,2604.6,2604.3,2.28116]
[1723859405559,0.00576136,2604.6,2604.4,1.91922]
[1723859405560,0.3526,2604.5,2604.4,1.91922]
[1723859405958,0.3526,2604.5,2604.3,2.28115]
[1723859406866,0.3526,2604.5,2604.4,1.91922]
[1723859408558,0.00576136,2604.6,2604.5,1.91915]
[1723859412676,0.0035464,2605.2,2604.5,10.75835]
[1723859412972,0.0035464,2605.2,2605.1,1.91871]
[1723859413569,0.0035464,2605.2,2605.1,5.75711]
[1723859415477,0.0035464,2605.2,2605.1,1.91871]
[1723859418370,0.0035464,2605.2,2605.0,2.28144]
[1723859418974,0.0035464,2605.2,2605.1,1.91871]
[1723859419673,0.0035464,2605.2,2605.0,2.28144]
[1723859420280,0.0035464,2605.2,2604.9,1.92457136]
[1723859420582,0.0035464,2605.2,2604.9,0.00576136]
[1723859420583,1.9222164,2605.2,2604.9,0.00576136]
[1723859420876,0.3542,2605.1,2604.9,0.00576136]
[1723859421178,2.29368,2605.0,2604.9,0.00576136]
[1723859421377,6.13208,2605.0,2604.9,0.00576136]
[1723859423174,0.3683,2605.1,2604.9,0.00576136]
[1723859423381,3.02272,2605.1,2604.9,0.00576136]
[1723859423983,1.104,2605.1,2604.9,0.00576136]
[1723859426272,3.02271,2605.1,2604.9,0.00576136]
[1723859427284,1.104,2605.1,2604.9,0.00576136]
[1723859427485,3.02271,2605.1,2604.9,0.00576136]
[1723859427681,1.104,2605.1,2604.9,0.00576136]
[1723859427876,1.104,2605.1,2604.9,1.92459136]
[1723859428384,1.104,2605.1,2605.0,1.91878]
[1723859428385,0.3683,2605.1,2605.0,1.91878]
[1723859428575,0.3683,2605.1,2605.0,6.11428]
[1723859428783,0.3683,2605.1,2605.0,6.46248]
[1723859429489,0.3683,2605.1,2605.0,2.62408]
[1723859430377,0.0035464,2605.2,2605.1,1.91871]
[1723859430683,3.5652,2606.1,2605.4,1.91849]
[1723859430882,3.5652,2606.1,2605.9,1.91805]
[1723859430883,0.3574,2606.1,2605.9,1.91805]
[1723859431579,0.3607178,2606.1,2605.9,1.92111207]
[1723859432281,0.3607178,2606.1,2605.9,0.00306207]
[1723859432984,5.75564,2606.0,2605.9,0.00306207]
[1723859433184,0.3607178,2606.1,2605.9,0.00306207]
[1723859433887,2.2786978,2606.1,2605.9,0.00306207]
[1723859434879,5.75564,2606.0,2605.9,0.00306207]
[1723859435389,0.0033178,2606.1,2605.9,0.00306207]
[1723859435786,0.0033178,2606.1,2605.9,1.92111207]
[1723859436284,0.0033178,2606.1,2605.9,0.00306207]
[1723859437579,0.0033178,2606.1,2605.9,1.92118207]
[1723859438889,0.0033178,2606.1,2605.9,0.00306207]
[1723859443988,1.9213378,2606.1,2605.9,0.00306207]
[1723859444882,1.91804,2606.0,2605.9,0.00306207]
[1723859446883,5.75564,2606.0,2605.9,0.00306207]
[1723859447082,10.75564,2606.0,2605.9,0.00306207]
[1723859447281,12.67368,2606.0,2605.9,0.00306207]
[1723859448195,5.75564,2606.0,2605.9,0.00306207]
[1723859451093,1.9213078,2606.1,2605.9,0.00306207]
[1723859451303,1.91804,2606.0,2605.9,0.00306207]
[1723859452592,5.75564,2606.0,2605.9,0.00306207]
[1723859454087,1.91804,2606.0,2605.9,0.00306207]
[1723859456187,1.9213378,2606.1,2605.9,0.00306207]
[1723859458192,1.91804,2606.0,2605.9,0.00306207]
[1723859459602,5.75564,2606.0,2605.9,0.00306207]
[1723859465800,1.91804,2606.0,2605.9,0.00306207]
[1723859466105,5.75564,2606.0,2605.9,0.00306207]
[1723859467699,7.67368,2606.0,2605.9,0.00306207]
[1723859468501,5.75564,2606.0,2605.9,0.00306207]
[1723859469309,10.75564,2606.0,2605.9,0.00306207]
[1723859469505,5.75564,2606.0,2605.9,0.00306207]
[1723859470310,1.91804,2606.0,2605.9,0.00306207]
[1723859470512,1.91804,2606.0,2605.9,0.72846207]
[1723859471901,3.2111178,2606.1,2605.9,1.83346207]
[1723859472117,0.00576136,2606.3,2606.2,1.91789]
[1723859472410,4.113,2606.7,2606.5,1.91767]
[1723859472597,4.113,2606.7,2606.6,0.3782]
[1723859473213,4.11708957,2606.7,2606.6,0.3782]
[1723859473706,4.11708957,2606.7,2606.6,1.4832]
[1723859473903,4.11708957,2606.7,2606.6,0.3782]
[1723859475111,4.11708957,2606.7,2606.6,2.2958]
[1723859475310,4.11708957,2606.7,2606.6,6.1318]
[1723859475702,4.11708957,2606.7,2606.6,4.2142]
[1723859476302,0.00408957,2606.7,2606.6,4.2142]
[1723859477912,0.00408957,2606.7,2606.6,6.1318]
[1723859479004,0.00408957,2606.7,2606.6,4.2142]
[1723859479199,0.00408957,2606.7,2606.6,6.1318]
[1723859479508,0.00408957,2606.7,2606.6,4.2142]
[1723859480211,0.00408957,2606.7,2606.6,0.3782]
[1723859480409,0.00408957,2606.7,2606.6,4.2142]
[1723859481105,0.00408957,2606.7,2606.6,0.3782]
[1723859482810,0.38058957,2606.7,2606.6,0.3782]
[1723859483004,2.29811957,2606.7,2606.6,0.3782]
[1723859483200,0.38058957,2606.7,2606.4,0.00576136]
[1723859483407,0.38058957,2606.7,2606.4,1.92348136]
[1723859483910,2.29811957,2606.7,2606.4,1.92348136]
[1723859484113,0.38058957,2606.7,2606.4,0.00576136]
[1723859484319,3.58838957,2606.7,2606.4,0.00576136]
[1723859484616,1.91767,2606.5,2606.4,0.00576136]
[1723859487915,5.75447,2606.5,2606.4,0.00576136]
[1723859488412,6.10487,2606.5,2606.4,0.00576136]
[1723859489315,2.29815957,2606.7,2606.4,1.92349136]
[1723859489512,2.29815957,2606.7,2606.4,0.00576136]
[1723859489718,1.91766,2606.6,2606.4,0.00576136]
[1723859490610,2.29815957,2606.7,2606.4,0.00576136]
[1723859491010,1.91762,2606.6,2606.4,0.00576136]
[1723859495826,3.58838957,2606.7,2606.4,0.00576136]
[1723859496018,1.91767,2606.5,2606.4,0.00576136]
[1723859500319,2.27387,2606.5,2606.4,0.00576136]
[1723859503025,5.48167,2606.5,2606.4,0.00576136]
[1723859504125,11.23614,2606.5,2606.4,0.00576136]
[1723859504433,1.91802,2606.1,2605.9,1.10806207]
[1723859504729,4.07574,2606.0,2605.9,0.00306207]
[1723859505031,2.97074,2606.0,2605.9,0.00306207]
[1723859508329,2.62874,2606.0,2605.9,1.10806207]
[1723859509234,2.27494,2606.0,2605.9,1.10806207]
[1723859514330,10.42534,2606.0,2605.9,0.00306207]